fUST/lending_fUST_20250718
["ID","MTS","AMOUNT","RATE_DAILY","PERIOD"]
[372918684,1752807034051,-462.97037541,0.00016438,2]
[372918685,1752807034060,-152.20610943,0.00016438,2]
[372918686,1752807034070,-596.0,0.00016438,2]
[372918687,1752807034079,-462.09033924,0.00016438,2]
[372918688,1752807034089,-510.53047477,0.00016438,2]
[372918689,1752807034098,-460.0,0.00016438,2]
[372918690,1752807034107,-151.0,0.00016438,2]
[372918691,1752807034117,-460.0,0.00016438,2]
[372918692,1752807034127,-548.49114151,0.00016438,2]
[372918693,1752807034136,-460.0,0.00016438,2]
[372918694,1752807034146,-460.0,0.00016438,2]
[372918695,1752807034155,-460.0,0.00016438,2]
[372918696,1752807034165,-460.0,0.00016438,2]
[372918697,1752807034174,-460.0,0.00016438,2]
[372918698,1752807034184,-460.0,0.00016438,2]
[372918699,1752807034193,-236.50650458,0.00016438,2]
[372918700,1752807034203,-460.0,0.00016438,2]
[372918701,1752807034213,-460.0,0.00016438,2]
[372918702,1752807034222,-465.24230489,0.00016438,2]
[372918703,1752807034232,-460.0,0.00016438,2]
[372918704,1752807034242,-460.0,0.00016438,2]
[372918705,1752807034252,-460.0,0.00016438,2]
[372918706,1752807034262,-460.0,0.00016438,2]
[372918707,1752807034271,-460.0,0.00016438,2]
[372918708,1752807034281,-460.0,0.00016438,2]
[372918709,1752807034290,-414.31453138,0.00016438,2]
[372918710,1752807034299,-460.0,0.00016438,2]
[372918711,1752807034309,-460.89287944,0.00016438,2]
[372918712,1752807034320,-461.08712612,0.00016438,2]
[372918713,1752807034330,-460.0,0.00016438,2]
[372918714,1752807034339,-460.0,0.00016438,2]
[372918715,1752807034349,-460.0,0.00016438,2]
[372918716,1752807034358,-458.07108097,0.00016438,2]
[372918717,1752807034368,-464.05236477,0.00016438,2]
[372918719,1752807034376,-465.96100799,0.00016438,2]
[372918720,1752807034385,-431.30495097,0.00016438,2]
[372918721,1752807034394,-460.0,0.00016438,2]
[372918722,1752807034404,-461.60022466,0.00016438,2]
[372918723,1752807034413,-372.25772257,0.00016438,2]
[372918724,1752807034422,-460.0,0.00016438,2]
[372918725,1752807034431,-272.14136454,0.00016438,2]
[372918726,1752807034441,-460.0,0.00016438,2]
[372918727,1752807034450,-460.0,0.00016438,2]
[372918728,1752807034460,-484.1,0.00016438,2]
[372918729,1752807034469,-460.0,0.00016438,2]
[372918730,1752807034478,-460.0,0.00016438,2]
[372918731,1752807034489,-460.0,0.00016438,2]
[372918732,1752807034499,-1237.61,0.00016438,2]
[372918733,1752807034510,-461.74928117,0.00016438,2]
[372918734,1752807034522,-460.0,0.00016438,2]
[372918735,1752807034532,-516.29,0.00016438,2]
[372918736,1752807034541,-460.0,0.00016438,2]
[372918737,1752807034551,-465.9007739,0.00016438,2]
[372918738,1752807034561,-460.0,0.00016438,2]
[372918739,1752807034571,-461.82119784,0.00016438,2]
[372918740,1752807034580,-460.0,0.00016438,2]
[372918741,1752807034590,-460.0,0.00016438,2]
[372918742,1752807034599,-464.7195968,0.00016438,2]
[372918743,1752807034611,-461.66881533,0.00016438,2]
[372918744,1752807034621,-460.0,0.00016438,2]
[372918745,1752807034630,-460.0,0.00016438,2]
[372918746,1752807034641,-460.0,0.00016438,2]
[372918747,1752807034652,-474.36213804,0.00016438,2]
[372918748,1752807034662,-1135.81,0.00016438,2]
[372918749,1752807034672,-224.46592327,0.00016438,2]
[372918750,1752807034681,-460.0,0.00016438,2]
[372918751,1752807034693,-460.0,0.00016438,2]
[372918752,1752807034703,-460.0,0.00016438,2]
[372918753,1752807034713,-460.0,0.00016438,2]
[372918754,1752807034723,-1594.99,0.00016438,2]
[372918755,1752807034733,-252.28445255,0.00016438,2]
[372918756,1752807034743,-462.53617757,0.00016438,2]
[372918757,1752807034752,-500.0,0.00016438,2]
[372918758,1752807034761,-152.73974111,0.00016438,2]
[372918759,1752807034770,-460.0,0.00016438,2]
[372918760,1752807034780,-460.0,0.00016438,2]
[372918761,1752807034789,-460.0,0.00016438,2]
[372918762,1752807034798,-460.0,0.00016438,2]
[372918763,1752807034808,-460.0,0.00016438,2]
[372918764,1752807034818,-490.06,0.00016438,2]
[372918765,1752807034828,-237.16714679,0.00016438,2]
[372918766,1752807034837,-500.0,0.00016438,2]
[372918767,1752807034847,-460.0,0.00016438,2]
[372918768,1752807034856,-500.0,0.00016438,2]
[372918769,1752807034866,-500.0,0.00016438,2]
[372918770,1752807034876,-460.0,0.00016438,2]
[372918771,1752807034887,-438.52056924,0.00016438,2]
[372918772,1752807034896,-828.35,0.00016438,2]
[372918773,1752807034906,-460.0,0.00016438,2]
[372918774,1752807034916,-460.0,0.00016438,2]
[372918775,1752807034925,-460.0,0.00016438,2]
[372918776,1752807034935,-460.0,0.00016438,2]
[372918777,1752807034945,-460.0,0.00016438,2]
[372918778,1752807034955,-460.0,0.00016438,2]
[372918779,1752807034964,-463.61114389,0.00016438,2]
[372918780,1752807034974,-460.0,0.00016438,2]
[372918781,1752807034983,-460.0,0.00016438,2]
[372918782,1752807034993,-467.02152288,0.00016438,2]
[372918783,1752807035002,-460.0,0.00016438,2]
[372918784,1752807035011,-460.0,0.00016438,2]
[372918785,1752807035021,-460.0,0.00016438,2]
[372918786,1752807035030,-460.0,0.00016438,2]
[372918787,1752807035039,-1300.1,0.00016438,2]
[372918788,1752807035048,-247.2,0.00016438,2]
[372918789,1752807035058,-460.0,0.00016438,2]
[372918790,1752807035067,-460.0,0.00016438,2]
[372918791,1752807035077,-460.0,0.00016438,2]
[372918792,1752807035087,-460.0,0.00016438,2]
[372918793,1752807035099,-461.09143393,0.00016438,2]
[372918794,1752807035108,-460.0,0.00016438,2]
[372918795,1752807035117,-460.0,0.00016438,2]
[372918796,1752807035126,-460.0,0.00016438,2]
[372918797,1752807035135,-463.16856311,0.00016438,2]
[372918798,1752807035145,-578.95290855,0.00016438,2]
[372918799,1752807035154,-462.43312392,0.00016438,2]
[372918800,1752807035164,-464.34496381,0.00016438,2]
[372918801,1752807035174,-460.0,0.00016438,2]
[372918802,1752807035183,-460.0,0.00016438,2]
[372918803,1752807035192,-460.0,0.00016438,2]
[372918804,1752807035201,-460.0,0.00016438,2]
[372918805,1752807035211,-151.56526372,0.00016438,2]
[372918806,1752807035220,-460.0,0.00016438,2]
[372918807,1752807035229,-460.0,0.00016438,2]
[372918808,1752807035239,-460.0,0.00016438,2]
[372918809,1752807035248,-2562.21,0.00016438,2]
[372918810,1752807035258,-460.0,0.00016438,2]
[372918811,1752807035267,-152.7797786,0.00016438,2]
[372918812,1752807035277,-460.0,0.00016438,2]
[372918813,1752807035286,-1798.72,0.00016438,2]
[372918814,1752807035296,-151.0,0.00016438,2]
[372918815,1752807035305,-460.0,0.00016438,2]
[372918816,1752807035315,-152.93706426,0.00016438,2]
[372918817,1752807035325,-460.0,0.00016438,2]
[372918818,1752807035334,-151.0,0.00016438,2]
[372918819,1752807035344,-460.0,0.00016438,2]
[372918820,1752807035353,-460.0,0.00016438,2]
[372918821,1752807035363,-460.0,0.00016438,2]
[372918822,1752807035373,-425.67810262,0.00016438,2]
[372918823,1752807035382,-176.14642923,0.00016438,2]
[372918824,1752807035392,-460.0,0.00016438,2]
[372918825,1752807035402,-460.0,0.00016438,2]
[372918826,1752807035412,-460.0,0.00016438,2]
[372918827,1752807035422,-460.0,0.00016438,2]
[372918828,1752807035431,-460.0,0.00016438,2]
[372918829,1752807035441,-460.0,0.00016438,2]
[372918830,1752807035450,-460.0,0.00016438,2]
[372918831,1752807035459,-666.92,0.00016438,2]
[372918832,1752807035469,-460.0,0.00016438,2]
[372918833,1752807035478,-460.0,0.00016438,2]
[372918834,1752807035488,-460.0,0.00016438,2]
[372918835,1752807035498,-460.0,0.00016438,2]
[372918836,1752807035507,-460.0,0.00016438,2]
[372918837,1752807035516,-570.69685837,0.00016438,2]
[372918838,1752807035526,-461.73092169,0.00016438,2]
[372918839,1752807035535,-460.0,0.00016438,2]
[372918840,1752807035544,-460.0,0.00016438,2]
[372918841,1752807035553,-460.0,0.00016438,2]
[372918842,1752807035563,-466.2957898,0.00016438,2]
[372918843,1752807035572,-460.0,0.00016438,2]
[372918844,1752807035581,-877.18,0.00016438,2]
[372918845,1752807035591,-460.0,0.00016438,2]
[372918846,1752807035600,-460.0,0.00016438,2]
[372918847,1752807035611,-199.7679813,0.00016438,2]
[372918851,1752807038598,-260.2320187,0.00016438,2]
[372918852,1752807038608,-460.0,0.00016438,2]
[372918853,1752807038622,-460.0,0.00016438,2]
[372918854,1752807038631,-460.0,0.00016438,2]
[372918855,1752807038641,-463.10929767,0.00016438,2]
[372918856,1752807038650,-814.36,0.00016438,2]
[372918857,1752807038662,-470.42,0.00016438,2]
[372918858,1752807038671,-460.0,0.00016438,2]
[372918859,1752807038681,-411.55297365,0.00016438,2]
[372918860,1752807038692,-461.06117179,0.00016438,2]
[372918862,1752807038702,-460.0,0.00016438,2]
[372918863,1752807038713,-460.0,0.00016438,2]
[372918864,1752807038724,-460.0,0.00016438,2]
[372918865,1752807038734,-460.0,0.00016438,2]
[372918866,1752807038744,-460.0,0.00016438,2]
[372918867,1752807038754,-460.0,0.00016438,2]
[372918868,1752807038763,-463.27659876,0.00016438,2]
[372918869,1752807038772,-761.64,0.00016438,2]
[372918870,1752807038782,-537.95396238,0.00016438,2]
[372918871,1752807038792,-460.0,0.00016438,2]
[372918872,1752807038801,-1405.77,0.00016438,2]
[372918873,1752807038813,-460.0,0.00016438,2]
[372918874,1752807038823,-460.46920298,0.00016438,2]
[372918875,1752807038833,-460.0,0.00016438,2]
[372918876,1752807038843,-460.0,0.00016438,2]
[372918877,1752807038852,-460.0,0.00016438,2]
[372918878,1752807038862,-460.0,0.00016438,2]
[372918879,1752807038872,-460.0,0.00016438,2]
[372918880,1752807038881,-470.58266324,0.00016438,2]
[372918881,1752807038891,-460.0,0.00016438,2]
[372918882,1752807038900,-840.31,0.00016438,2]
[372918883,1752807038910,-461.65546199,0.00016438,2]
[372918884,1752807038920,-460.0,0.00016438,2]
[372918885,1752807038929,-1288.28656983,0.00016473,2]
[372918886,1752807038939,-2251.14843824,0.00016473,2]
[372918887,1752807038948,-500.0,0.00016511,2]
[372918888,1752807038958,-279.58183577,0.00016511,2]
[372918889,1752807039093,-370000.0,0.00016512,2]
[372918890,1752807039103,-212.74842167,0.00016573,2]
[372918891,1752807039113,-500.0,0.00016573,2]
[372918892,1752807039122,-500.0,0.00016573,2]
[372918893,1752807039132,-500.0,0.00016611,2]
[372918894,1752807039142,-500.0,0.00016611,2]
[372918895,1752807039151,-500.0,0.00016611,2]
[372918896,1752807039161,-500.0,0.00016611,2]
[372918897,1752807039170,-460.0,0.0001671,2]
[372918898,1752807039179,-464.00902594,0.0001671,2]
[372918899,1752807039189,-596.0,0.00016712,2]
[372918900,1752807039198,-151.0,0.00016712,2]
[372918901,1752807039208,-500.0,0.00016712,2]
[372918902,1752807039217,-151.0,0.00016712,2]
[372918903,1752807039226,-151.0,0.00016712,2]
[372918904,1752807039235,-474.74055279,0.00016712,2]
[372918905,1752807039248,-460.0,0.00016712,2]
[372918906,1752807039258,-460.0,0.00016712,2]
[372918907,1752807039268,-460.0,0.00016712,2]
[372918908,1752807039277,-460.0,0.00016712,2]
[372918909,1752807039287,-569.80108252,0.00016712,2]
[372918910,1752807039297,-460.0,0.00016712,2]
[372918911,1752807039307,-460.0,0.00016712,2]
[372918912,1752807039316,-460.0,0.00016712,2]
[372918913,1752807039326,-460.0,0.00016712,2]
[372918914,1752807039337,-460.0,0.00016712,2]
[372918915,1752807039347,-460.0,0.00016712,2]
[372918916,1752807039356,-460.0,0.00016712,2]
[372918917,1752807039365,-460.0,0.00016712,2]
[372918918,1752807039376,-460.0,0.00016712,2]
[372918919,1752807039386,-460.0,0.00016712,2]
[372918920,1752807039396,-460.0,0.00016712,2]
[372918921,1752807039405,-460.0,0.00016712,2]
[372918922,1752807039415,-460.0,0.00016712,2]
[372918923,1752807039425,-460.0,0.00016712,2]
[372918924,1752807039434,-460.0,0.00016712,2]
[372918925,1752807039444,-257.24499315,0.00016712,2]
[372918926,1752807039453,-460.0,0.00016712,2]
[372918927,1752807039463,-460.0,0.00016712,2]
[372918928,1752807039473,-460.0,0.00016712,2]
[372918929,1752807039484,-484.1,0.00016712,2]
[372918930,1752807039497,-1237.61,0.00016712,2]
[372918931,1752807039506,-460.0,0.00016712,2]
[372918932,1752807039516,-516.29,0.00016712,2]
[372918933,1752807039526,-460.0,0.00016712,2]
[372918934,1752807039535,-460.0,0.00016712,2]
[372918935,1752807039545,-460.0,0.00016712,2]
[372918936,1752807039554,-1135.81,0.00016712,2]
[372918937,1752807039563,-460.0,0.00016712,2]
[372918938,1752807039573,-468.60161933,0.00016712,2]
[372918939,1752807039583,-460.0,0.00016712,2]
[372918940,1752807039592,-1594.99,0.00016712,2]
[372918941,1752807039602,-460.0,0.00016712,2]
[372918942,1752807039613,-460.0,0.00016712,2]
[372918943,1752807039623,-490.06,0.00016712,2]
[372918944,1752807039633,-302.75058905,0.00016712,2]
[372918945,1752807039644,-828.35,0.00016712,2]
[372918946,1752807039653,-460.0,0.00016712,2]
[372918947,1752807039664,-460.0,0.00016712,2]
[372918948,1752807039673,-460.0,0.00016712,2]
[372918949,1752807039696,-460.0,0.00016712,2]
[372918950,1752807039708,-460.0,0.00016712,2]
[372918951,1752807039718,-460.0,0.00016712,2]
[372918952,1752807039730,-249.80753227,0.00016712,2]
[372918953,1752807039742,-460.0,0.00016712,2]
[372918954,1752807039752,-460.0,0.00016712,2]
[372918955,1752807039761,-1300.1,0.00016712,2]
[372918956,1752807039771,-460.0,0.00016712,2]
[372918957,1752807039781,-460.0,0.00016712,2]
[372918958,1752807039792,-460.55,0.00016712,2]
[372918959,1752807039802,-460.0,0.00016712,2]
[372918960,1752807039812,-460.0,0.00016712,2]
[372918961,1752807039822,-460.0,0.00016712,2]
[372918962,1752807039833,-460.0,0.00016712,2]
[372918963,1752807039843,-2562.21,0.00016712,2]
[372918964,1752807039853,-460.0,0.00016712,2]
[372918965,1752807039862,-1798.72,0.00016712,2]
[372918966,1752807039872,-460.0,0.00016712,2]
[372918967,1752807039882,-460.0,0.00016712,2]
[372918968,1752807039893,-449.09225667,0.00016712,2]
[372918969,1752807039902,-460.0,0.00016712,2]
[372918970,1752807039912,-460.0,0.00016712,2]
[372918971,1752807039922,-232.71471272,0.00016712,2]
[372918972,1752807039932,-460.0,0.00016712,2]
[372918973,1752807039943,-460.0,0.00016712,2]
[372918974,1752807039953,-666.92,0.00016712,2]
[372918975,1752807039963,-460.0,0.00016712,2]
[372918976,1752807039973,-460.0,0.00016712,2]
[372918977,1752807039983,-460.0,0.00016712,2]
[372918978,1752807039994,-460.0,0.00016712,2]
[372918979,1752807040004,-460.0,0.00016712,2]
[372918980,1752807040018,-460.0,0.00016712,2]
[372918981,1752807040028,-460.0,0.00016712,2]
[372918982,1752807040037,-877.18,0.00016712,2]
[372918983,1752807040047,-460.0,0.00016712,2]
[372918984,1752807040056,-582.89175917,0.00016712,2]
[372918985,1752807040068,-460.0,0.00016712,2]
[372918986,1752807040079,-814.36,0.00016712,2]
[372918987,1752807040089,-568.13398783,0.00016712,2]
[372918988,1752807040099,-460.0,0.00016712,2]
[372918989,1752807040109,-460.0,0.00016712,2]
[372918990,1752807040118,-460.0,0.00016712,2]
[372918991,1752807040128,-460.0,0.00016712,2]
[372918992,1752807040138,-460.0,0.00016712,2]
[372918993,1752807040148,-761.64,0.00016712,2]
[372918994,1752807040157,-1405.77,0.00016712,2]
[372918995,1752807040167,-486.74287168,0.00016712,2]
[372918996,1752807040176,-478.19149582,0.00016712,2]
[372918997,1752807040185,-288.29456536,0.00016712,2]
[372918998,1752807040195,-840.31,0.00016712,2]
[372918999,1752807040205,-595.36,0.00016712,2]
[372919000,1752807040220,-150.0,0.00016911,2]
[372919001,1752807040230,-596.0,0.00016986,2]
[372919002,1752807040240,-200.39088052,0.00016986,2]
[372919003,1752807040250,-500.0,0.00016986,2]
[372919004,1752807040260,-151.0,0.00016986,2]
[372919005,1752807040270,-200.94878946,0.00016986,2]
[372919006,1752807040280,-472.88845816,0.00016986,2]
[372919007,1752807040289,-460.0,0.00016986,2]
[372919008,1752807040299,-460.0,0.00016986,2]
[372919009,1752807040309,-460.0,0.00016986,2]
[372919011,1752807040319,-460.0,0.00016986,2]
[372919013,1752807040328,-460.0,0.00016986,2]
[372919015,1752807040338,-460.0,0.00016986,2]
[372919016,1752807040348,-460.0,0.00016986,2]
[372919017,1752807040357,-460.0,0.00016986,2]
[372919019,1752807040367,-460.0,0.00016986,2]
[372919020,1752807040377,-460.0,0.00016986,2]
[372919021,1752807040386,-460.0,0.00016986,2]
[372919022,1752807040396,-460.0,0.00016986,2]
[372919023,1752807040406,-460.0,0.00016986,2]
[372919024,1752807040416,-460.0,0.00016986,2]
[372919025,1752807040427,-460.0,0.00016986,2]
[372919026,1752807040438,-460.0,0.00016986,2]
[372919027,1752807040448,-484.1,0.00016986,2]
[372919028,1752807040457,-1237.61,0.00016986,2]
[372919029,1752807040478,-516.29,0.00016986,2]
[372919030,1752807040488,-460.0,0.00016986,2]
[372919031,1752807040499,-460.0,0.00016986,2]
[372919032,1752807040508,-1135.81,0.00016986,2]
[372919033,1752807040518,-460.0,0.00016986,2]
[372919034,1752807040528,-460.0,0.00016986,2]
[372919035,1752807040538,-1594.99,0.00016986,2]
[372919036,1752807040547,-460.0,0.00016986,2]
[372919037,1752807040557,-460.0,0.00016986,2]
[372919038,1752807040568,-490.06,0.00016986,2]
[372919039,1752807040579,-828.35,0.00016986,2]
[372919040,1752807040591,-460.0,0.00016986,2]
[372919041,1752807040602,-460.0,0.00016986,2]
[372919042,1752807040613,-460.0,0.00016986,2]
[372919043,1752807040624,-460.0,0.00016986,2]
[372919044,1752807040633,-460.0,0.00016986,2]
[372919045,1752807040642,-460.0,0.00016986,2]
[372919046,1752807040652,-576.28,0.00016986,2]
[372919047,1752807040663,-1300.1,0.00016986,2]
[372919048,1752807040674,-460.0,0.00016986,2]
[372919049,1752807040684,-460.0,0.00016986,2]
[372919050,1752807040695,-460.0,0.00016986,2]
[372919051,1752807040705,-460.0,0.00016986,2]
[372919052,1752807040714,-460.0,0.00016986,2]
[372919053,1752807040724,-2562.21,0.00016986,2]
[372919054,1752807040734,-219.16408365,0.00016986,2]
[372919055,1752807040744,-1798.72,0.00016986,2]
[372919056,1752807040753,-460.0,0.00016986,2]
[372919057,1752807040767,-432.44957427,0.00016986,2]
[372919058,1752807040777,-460.0,0.00016986,2]
[372919059,1752807040787,-460.0,0.00016986,2]
[372919060,1752807040797,-666.92,0.00016986,2]
[372919061,1752807040807,-460.0,0.00016986,2]
[372919062,1752807040816,-460.0,0.00016986,2]
[372919063,1752807040826,-460.0,0.00016986,2]
[372919064,1752807040835,-460.0,0.00016986,2]
[372919065,1752807040845,-877.18,0.00016986,2]
[372919066,1752807040856,-460.0,0.00016986,2]
[372919067,1752807040866,-460.0,0.00016986,2]
[372919068,1752807040876,-814.36,0.00016986,2]
[372919069,1752807040886,-460.0,0.00016986,2]
[372919070,1752807040895,-460.0,0.00016986,2]
[372919071,1752807040905,-608.60103938,0.00016986,2]
[372919072,1752807040915,-460.0,0.00016986,2]
[372919073,1752807040924,-460.0,0.00016986,2]
[372919074,1752807040935,-761.64,0.00016986,2]
[372919075,1752807040945,-1405.77,0.00016986,2]
[372919076,1752807040955,-840.31,0.00016986,2]
[372919077,1752807040965,-1000.0,0.00017121,2]
[372919078,1752807040974,-312.0,0.00017254,2]
[372919079,1752807040984,-596.0,0.0001726,2]
[372919080,1752807040994,-500.0,0.0001726,2]
[372919081,1752807041004,-151.0,0.0001726,2]
[372919082,1752807041013,-508.8848807,0.0001726,2]
[372919083,1752807041022,-460.0,0.0001726,2]
[372919084,1752807041032,-460.0,0.0001726,2]
[372919085,1752807041041,-479.2269231,0.0001726,2]
[372919086,1752807041051,-387.26900235,0.0001726,2]
[372919087,1752807041060,-460.0,0.0001726,2]
[372919088,1752807041069,-460.0,0.0001726,2]
[372919089,1752807041079,-460.0,0.0001726,2]
[372919090,1752807041088,-460.0,0.0001726,2]
[372919091,1752807041098,-484.1,0.0001726,2]
[372919092,1752807041107,-1237.61,0.0001726,2]
[372919093,1752807041117,-516.29,0.0001726,2]
[372919094,1752807041127,-460.0,0.0001726,2]
[372919095,1752807041137,-1135.81,0.0001726,2]
[372919096,1752807041147,-460.0,0.0001726,2]
[372919097,1752807041156,-1594.99,0.0001726,2]
[372919098,1752807041166,-460.0,0.0001726,2]
[372919099,1752807041175,-460.0,0.0001726,2]
[372919100,1752807041185,-490.06,0.0001726,2]
[372919101,1752807041194,-828.35,0.0001726,2]
[372919102,1752807041204,-383.77949545,0.0001726,2]
[372919103,1752807041213,-460.0,0.0001726,2]
[372919104,1752807041222,-460.0,0.0001726,2]
[372919105,1752807041232,-460.0,0.0001726,2]
[372919106,1752807041241,-460.0,0.0001726,2]
[372919107,1752807041251,-460.0,0.0001726,2]
[372919108,1752807041260,-1300.1,0.0001726,2]
[372919109,1752807041270,-460.0,0.0001726,2]
[372919110,1752807041281,-460.0,0.0001726,2]
[372919111,1752807041291,-460.0,0.0001726,2]
[372919112,1752807041303,-460.0,0.0001726,2]
[372919113,1752807041312,-2562.21,0.0001726,2]
[372919114,1752807041322,-1798.72,0.0001726,2]
[372919115,1752807041331,-460.0,0.0001726,2]
[372919116,1752807041341,-460.0,0.0001726,2]
[372919117,1752807041351,-460.0,0.0001726,2]
[372919118,1752807041361,-666.92,0.0001726,2]
[372919119,1752807041372,-460.0,0.0001726,2]
[372919120,1752807041385,-460.0,0.0001726,2]
[372919121,1752807041395,-460.0,0.0001726,2]
[372919122,1752807041404,-460.0,0.0001726,2]
[372919123,1752807041414,-877.18,0.0001726,2]
[372919124,1752807041423,-476.92708727,0.0001726,2]
[372919125,1752807041433,-460.0,0.0001726,2]
[372919126,1752807041443,-814.36,0.0001726,2]
[372919127,1752807041453,-305.22085771,0.0001726,2]
[372919128,1752807041463,-261.4164914,0.0001726,2]
[372919129,1752807041472,-460.0,0.0001726,2]
[372919130,1752807041483,-460.0,0.0001726,2]
[372919131,1752807041492,-761.64,0.0001726,2]
[372919132,1752807041502,-1405.77,0.0001726,2]
[372919133,1752807041512,-840.31,0.0001726,2]
[372919134,1752807041522,-596.0,0.00017534,2]
[372919135,1752807041531,-500.0,0.00017534,2]
[372919136,1752807041541,-293.5466711,0.00017534,2]
[372919137,1752807041552,-460.0,0.00017534,2]
[372919138,1752807041561,-460.0,0.00017534,2]
[372919139,1752807041571,-460.0,0.00017534,2]
[372919140,1752807041581,-460.0,0.00017534,2]
[372919141,1752807041590,-484.1,0.00017534,2]
[372919142,1752807041600,-1237.61,0.00017534,2]
[372919143,1752807041610,-516.29,0.00017534,2]
[372919144,1752807041622,-460.0,0.00017534,2]
[372919145,1752807041632,-1135.81,0.00017534,2]
[372919146,1752807041641,-460.0,0.00017534,2]
[372919147,1752807041651,-1594.99,0.00017534,2]
[372919148,1752807041661,-460.0,0.00017534,2]
[372919149,1752807041671,-460.0,0.00017534,2]
[372919150,1752807041684,-490.06,0.00017534,2]
[372919151,1752807041695,-828.35,0.00017534,2]
[372919152,1752807041705,-460.0,0.00017534,2]
[372919153,1752807041715,-460.0,0.00017534,2]
[372919154,1752807041725,-460.0,0.00017534,2]
[372919155,1752807041734,-460.0,0.00017534,2]
[372919156,1752807041745,-460.0,0.00017534,2]
[372919157,1752807041754,-1300.1,0.00017534,2]
[372919158,1752807041764,-460.0,0.00017534,2]
[372919159,1752807041774,-460.0,0.00017534,2]
[372919160,1752807041783,-460.0,0.00017534,2]
[372919161,1752807041795,-460.0,0.00017534,2]
[372919162,1752807041805,-2562.21,0.00017534,2]
[372919163,1752807041815,-1798.72,0.00017534,2]
[372919164,1752807041824,-460.0,0.00017534,2]
[372919165,1752807041834,-460.0,0.00017534,2]
[372919166,1752807041843,-460.0,0.00017534,2]
[372919167,1752807041854,-666.92,0.00017534,2]
[372919168,1752807041863,-460.0,0.00017534,2]
[372919169,1752807041873,-157.71492519,0.00017534,2]
[372919170,1752807041883,-460.0,0.00017534,2]
[372919171,1752807041893,-877.18,0.00017534,2]
[372919172,1752807041903,-200.84253818,0.00017534,2]
[372919173,1752807041913,-814.36,0.00017534,2]
[372919174,1752807042047,-460.0,0.00017534,2]
[372919175,1752807042057,-761.64,0.00017534,2]
[372919176,1752807042068,-1405.77,0.00017534,2]
[372919177,1752807042077,-840.31,0.00017534,2]
[372919178,1752807042086,-845.7088678,0.00017647,2]
[372919179,1752807042096,-1500.0,0.00017668,2]
[372919180,1752807042107,-1288.28656979,0.00017741,2]
[372919181,1752807042116,-596.0,0.00017808,2]
[372919182,1752807042125,-500.0,0.00017808,2]
[372919183,1752807042135,-460.0,0.00017808,2]
[372919184,1752807042144,-173.38,0.00017808,2]
[372919185,1752807042154,-460.0,0.00017808,2]
[372919186,1752807042164,-484.1,0.00017808,2]
[372919187,1752807042173,-1237.61,0.00017808,2]
[372919188,1752807042183,-516.29,0.00017808,2]
[372919189,1752807042193,-460.0,0.00017808,2]
[372919190,1752807042203,-1135.81,0.00017808,2]
[372919191,1752807042213,-451.25384639,0.00017808,2]
[372919192,1752807042222,-1594.99,0.00017808,2]